bitfinex/quotes_ETHUSD_20250630
["timestamp","ask_amount","ask_price","bid_price","bid_amount"]
[1751291275964,0.2024,2464.1,2463.8,4.0587631]
[1751291276142,0.2024,2464.1,2463.7,4.05881984]
[1751291276671,0.2024,2464.1,2463.8,4.05875421]
[1751291276967,1.9564,2464.1,2464.0,4.05844155]
[1751291277555,1.9564,2464.1,2463.9,4.05851069]
[1751291277755,1.9564,2464.1,2464.0,4.05844155]
[1751291277958,1.9564,2464.1,2463.9,4.05852012]
[1751291278833,1.9564,2464.1,2463.8,4.05868952]
[1751291279033,1.9564,2464.1,2463.7,4.05885013]
[1751291280169,1.9564,2464.1,2463.6,0.2024]
[1751291280356,0.8065,2464.0,2463.5,4.07910079]
[1751291280542,0.2024,2463.9,2463.6,4.0590959]
[1751291281555,0.2024,2463.9,2463.5,4.07920651]
[1751291281556,4.26103744,2463.9,2463.5,4.07918151]
[1751291281858,4.05886459,2463.8,2463.5,0.02]
[1751291282171,0.2024,2463.7,2463.5,0.02]
[1751291282850,0.2024,2463.7,2463.6,4.0591005]
[1751291283172,4.0591005,2463.6,2463.5,0.02]
[1751291283383,7.1582005,2463.6,2463.5,0.02]
[1751291283535,8.94851491,2463.6,2463.5,0.02]
[1751291284645,4.88941441,2463.6,2463.5,0.02]
[1751291284848,0.7951,2463.6,2463.5,0.02]
[1751291285094,0.7951,2463.6,2463.5,4.07926527]
[1751291285392,1.9574,2463.6,2463.5,0.02]
[1751291285899,6.0165005,2463.6,2463.5,0.02]
[1751291286190,1.9574,2463.6,2463.5,0.02]
[1751291286351,6.9629805,2463.6,2463.5,0.02]
[1751291286547,2.90388,2463.6,2463.5,0.02]
[1751291287406,0.2024,2463.6,2463.5,4.07926527]
[1751291287561,1.9574,2463.6,2463.5,4.07926527]
[1751291288493,1.9574,2463.6,2463.5,0.02]
[1751291289597,1.9574,2463.6,2463.5,4.07926527]
[1751291289792,1.9574,2463.6,2463.5,0.02]
[1751291290263,1.9574,2463.6,2463.5,4.07926527]
[1751291290465,1.9574,2463.6,2463.5,0.02]
[1751291290795,1.9574,2463.6,2463.5,4.07926527]
[1751291291107,1.9574,2463.6,2463.5,0.02]
[1751291291259,3.58574,2463.6,2463.5,0.02]
[1751291291459,7.6448405,2463.6,2463.5,0.02]
[1751291291668,8.1948405,2463.6,2463.5,0.02]
[1751291291873,14.8818405,2463.6,2463.5,0.02]
[1751291293297,10.82274,2463.6,2463.5,0.02]
[1751291293702,14.8818405,2463.6,2463.5,0.02]
[1751291295203,24.8818405,2463.6,2463.5,0.02]
[1751291296676,16.4398405,2463.6,2463.5,0.02]
[1751291296876,24.8828405,2463.6,2463.5,0.02]
[1751291297805,2.38074,2463.6,2463.5,0.02]
[1751291298111,14.8828405,2463.6,2463.5,0.02]
[1751291298572,10.82374,2463.6,2463.5,0.02]
[1751291299001,2.38074,2463.6,2463.5,0.02]
[1751291299202,9.4093,2463.6,2463.5,0.02]
[1751291299815,0.2024,2463.6,2463.5,4.07926527]
[1751291299988,8.6454,2463.6,2463.5,4.07926527]
[1751291300949,1.755,2463.8,2463.7,4.05885397]
[1751291301101,8.6454,2463.8,2463.6,4.05898754]
[1751291301418,8.6454,2463.8,2463.7,4.05893574]
[1751291301626,8.6454,2463.8,2463.6,4.05900516]
[1751291301923,8.6454,2463.8,2463.5,4.07917796]
[1751291302125,8.6454,2463.8,2463.6,4.05906884]
[1751291302424,8.6454,2463.8,2463.7,4.05893574]
[1751291303199,1.755,2464.2,2463.7,0.81380046]
[1751291303492,1.755,2464.2,2464.1,4.05827685]
[1751291303801,1.755,2464.2,2464.0,4.05828828]
[1751291303802,0.2024,2464.1,2464.0,4.05828828]
[1751291304381,8.443,2464.2,2464.1,4.05827685]
[1751291305701,8.443,2464.2,2463.9,4.05857264]
[1751291305891,8.443,2464.2,2464.0,4.05834705]
[1751291306714,8.442,2464.2,2464.0,4.05834705]
[1751291306923,8.442,2464.2,2463.8,5.09057249]
[1751291307113,8.442,2464.2,2463.8,4.88821114]
[1751291307114,0.2024,2464.1,2463.8,4.88821114]
[1751291307317,0.2024,2464.1,2463.8,0.8295]
[1751291307519,0.2024,2464.1,2463.8,4.88819188]
[1751291307822,0.2024,2463.9,2463.6,4.05896164]
[1751291308009,0.2024,2463.9,2463.7,4.05892516]
[1751291308324,0.2024,2463.9,2463.8,4.058771]
[1751291309525,8.442,2464.2,2464.0,4.05831759]
[1751291309720,8.441,2464.1,2464.0,4.05831759]
[1751291310024,8.6434,2464.3,2464.2,4.05804061]
[1751291310912,8.6434,2464.3,2464.1,4.05821509]
[1751291311130,8.6434,2464.3,2464.2,4.05811216]
[1751291311727,8.6434,2464.3,2464.1,4.05818983]
[1751291311928,8.6434,2464.3,2463.9,4.05855292]
[1751291311929,8.6434,2464.3,2463.8,0.9938]
[1751291312240,8.6434,2464.3,2464.1,4.0581262]
[1751291312420,8.6434,2464.3,2464.2,4.05811216]
[1751291312821,1.754,2464.3,2464.2,4.05811216]
[1751291313226,0.2024,2464.5,2464.4,4.05778282]
[1751291313550,0.2024,2464.9,2464.8,4.05712431]
[1751291314124,1.754,2465.5,2465.4,4.05613693]
[1751291315249,2.5062,2465.5,2464.9,0.8276]
[1751291315447,2.5062,2465.5,2464.9,4.8844678]
[1751291315622,1.72129471,2465.8,2465.4,4.05613693]
[1751291315824,1.754,2465.7,2465.5,4.05597241]
[1751291316172,1.754,2465.8,2465.7,4.05564342]
[1751291317110,7.65509471,2466.2,2465.5,0.893967]
[1751291317111,0.96909471,2466.2,2466.1,4.0549856]
[1751291317315,0.824,2466.5,2466.3,4.05465677]
[1751291317316,0.01,2466.5,2466.3,4.05465677]
[1751291317515,0.01,2466.5,2466.2,4.0546828]
[1751291317941,1.764,2466.5,2466.3,4.05465469]
[1751291318126,1.764,2466.5,2466.4,4.05449237]
[1751291318326,1.764,2466.5,2466.3,4.05461032]
[1751291318588,1.764,2466.5,2466.2,4.05477136]
[1751291319689,1.764,2466.5,2466.2,4.05475263]
[1751291320466,0.01,2466.5,2466.4,4.05449237]
[1751291321279,0.01,2466.5,2466.4,4.87529237]
[1751291325254,0.01,2466.5,2466.4,0.2024]
[1751291325461,0.01,2466.5,2466.1,0.7544]
[1751291325655,0.01,2466.5,2466.3,4.05463999]
[1751291326618,0.01,2466.5,2466.4,4.05449237]
[1751291326978,0.01,2466.5,2466.4,4.88564561]
[1751291327300,0.01,2466.5,2466.4,5.08804561]
[1751291328412,0.01,2466.5,2466.4,5.88954561]
[1751291328617,0.01,2466.5,2466.4,15.88954561]
[1751291329004,0.02,2466.8,2466.7,4.85549927]
[1751291329211,0.02,2466.8,2466.7,16.8107977]
[1751291329515,0.02,2466.8,2466.7,17.0131977]
[1751291334223,0.02,2466.8,2466.7,33.6921977]
[1751291335430,0.02,2466.8,2466.7,15.75797516]
[1751291335725,0.02,2466.8,2466.7,4.05399927]
[1751291336091,0.02,2466.8,2466.7,16.11732181]
[1751291336285,0.02,2466.8,2466.7,26.11732181]
[1751291337689,0.02,2466.8,2466.7,14.86209927]
[1751291337907,0.02,2466.8,2466.7,4.05399927]
[1751291338113,0.02,2466.8,2466.7,5.25934857]
[1751291338382,0.02,2466.8,2466.7,16.51457111]
[1751291339019,0.01,2467.4,2467.3,4.05301341]
[1751291343540,0.01,2467.4,2467.1,14.05324586]
[1751291343755,0.8032,2467.3,2466.2,0.8309]
[1751291343933,4.85707068,2466.8,2466.4,4.05448393]
[1751291344132,4.85707068,2466.8,2465.9,0.31102769]
[1751291344133,4.05413358,2466.7,2466.2,4.05473834]
[1751291344676,4.0541857,2466.6,2466.2,4.05475214]
[1751291344949,4.05439781,2466.5,2465.4,11.25522254]
[1751291345135,0.7558,2466.3,2465.9,4.05529758]
[1751291345447,0.7558,2466.3,2466.0,4.05504968]
[1751291345448,2.5068,2466.3,2466.0,4.05504968]
[1751291345632,2.5068,2466.3,2466.2,4.05482118]
[1751291345815,2.5068,2466.3,2466.0,0.2024]
[1751291346016,2.5068,2466.3,2466.0,4.25740037]
[1751291346245,2.5068,2466.3,2466.0,0.2024]
[1751291346406,6.56151001,2466.3,2466.0,0.2024]
[1751291346606,7.49804858,2466.3,2465.8,4.05546705]
[1751291346807,0.2024,2466.1,2465.7,4.2579816]
[1751291347045,0.2024,2466.1,2465.6,4.05571742]
[1751291347046,4.0550003,2466.1,2465.6,4.05571742]
[1751291347255,0.2024,2465.9,2465.6,4.05571742]
[1751291347431,0.2024,2465.9,2465.6,4.88711711]
[1751291347631,0.2024,2465.9,2465.7,4.0556227]
[1751291347834,2.5068,2466.3,2465.9,4.05524116]
[1751291348010,0.2024,2466.1,2465.9,4.05524116]
[1751291348942,0.2024,2466.1,2465.7,4.2579919]
[1751291349249,0.2024,2466.1,2465.9,4.055305]
[1751291349819,0.2024,2466.1,2465.7,0.2024]
[1751291350008,4.05507301,2466.1,2465.4,14.05606566]
[1751291350247,0.2024,2465.9,2465.5,0.2024]
[1751291350545,0.2024,2465.9,2465.6,4.05568096]
[1751291352369,2.5299,2465.8,2465.5,0.2024]
[1751291352649,0.47563,2465.7,2465.3,4.05618874]
[1751291352848,4.25808267,2465.7,2465.2,0.2024]
[1751291353053,0.2024,2465.7,2465.2,0.2024]
[1751291353238,0.2024,2465.9,2465.5,0.2024]
[1751291353416,0.2024,2465.9,2465.7,4.05559076]
[1751291353615,0.2024,2465.9,2465.6,4.05571257]
[1751291353812,0.2024,2465.9,2465.0,0.8223]
[1751291353813,0.27252,2465.9,2465.0,0.8223]
[1751291354038,0.2024,2465.7,2465.4,4.05611406]
[1751291354653,0.2024,2465.7,2465.2,4.25880313]
[1751291354654,0.2024,2465.7,2465.5,4.05593894]
[1751291354817,0.2024,2465.7,2465.5,4.05588142]
[1751291355343,0.2024,2465.7,2465.6,4.05580791]
[1751291355547,4.82587361,2466.1,2465.6,4.05580791]
[1751291355548,1.752,2466.0,2465.7,4.05553356]
[1751291355756,0.2024,2465.8,2465.7,4.05556491]
[1751291356155,0.2024,2465.8,2465.6,4.05573053]
[1751291356354,0.2024,2465.8,2465.7,4.05564342]
[1751291356558,0.2024,2465.8,2465.6,4.05565606]
[1751291356766,0.2024,2465.8,2465.5,4.05589736]
[1751291356970,1.3147,2465.7,2464.7,4.871171]
[1751291357282,0.2024,2465.2,2464.8,4.25940125]
[1751291357459,0.2024,2465.2,2465.0,4.05670441]
[1751291357657,0.2024,2465.2,2464.9,4.05687232]
[1751291357861,5.80815396,2465.4,2464.8,4.05711783]
[1751291357862,0.7647,2465.1,2464.8,4.05711783]
[1751291358183,0.7647,2465.1,2464.7,4.0572011]
[1751291358368,0.2024,2464.8,2464.6,4.05737398]
[1751291358569,0.2024,2464.8,2464.7,4.05728891]
[1751291359563,0.2024,2464.8,2464.4,4.05776608]
[1751291359784,0.2024,2464.8,2464.6,4.05744736]
[1751291359991,0.2024,2464.8,2464.6,4.05736105]
[1751291360356,0.2024,2464.8,2464.7,4.05728891]
[1751291360687,0.2024,2464.8,2464.6,4.0573858]
[1751291360846,0.2024,2464.8,2464.3,0.2024]
[1751291361051,0.2024,2464.8,2464.4,4.05765826]
[1751291361252,0.2024,2464.8,2464.5,4.05754419]
[1751291361454,0.2024,2464.8,2464.6,4.05744642]
[1751291362146,0.2024,2464.8,2464.7,4.05728891]
[1751291364497,0.2024,2464.8,2464.6,4.05736698]
[1751291364651,0.2024,2464.8,2464.5,4.05752669]
[1751291364857,0.2024,2464.8,2464.3,4.05794749]
[1751291364858,1.03,2464.6,2464.3,4.05794749]
[1751291365068,0.8276,2464.6,2463.8,4.83656426]
[1751291365358,0.2024,2464.4,2464.2,4.05800647]
[1751291366194,0.2024,2464.4,2464.0,0.2024]
[1751291366395,6.01218795,2464.4,2464.0,0.2024]
[1751291366556,0.2024,2464.2,2463.9,4.05845695]
[1751291366760,0.2024,2464.2,2464.1,4.05827685]
[1751291366962,0.2024,2464.2,2464.0,4.05836907]
[1751291367394,0.2024,2464.2,2464.1,4.05827685]
[1751291368490,0.2024,2464.2,2464.0,4.05837076]
[1751291368863,0.2024,2464.2,2463.9,4.05851609]
[1751291369398,0.2024,2464.2,2464.0,4.05844]
[1751291369892,0.55,2464.2,2463.8,4.05872793]
[1751291370102,0.2024,2464.0,2463.7,4.05884364]
[1751291370390,0.2024,2464.0,2463.8,4.05874355]
[1751291370894,0.2024,2464.0,2463.7,4.05885833]
[1751291371417,0.827,2464.0,2463.5,0.02]
[1751291371579,6.31221387,2463.9,2463.5,0.02]
[1751291371917,0.2024,2463.6,2463.5,0.02]
[1751291372729,15.5803005,2463.6,2463.5,0.02]
[1751291373572,24.0523005,2463.6,2463.5,0.02]
[1751291375513,19.9952,2463.6,2463.5,0.02]
[1751291375718,26.45970783,2463.6,2463.5,0.02]
[1751291377197,2.7372,2463.6,2463.5,0.02]
[1751291377398,9.4502,2463.6,2463.5,0.02]
[1751291377718,14.0593005,2463.6,2463.5,0.02]
[1751291378713,10.0002,2463.6,2463.5,0.02]
[1751291378900,3.2872,2463.6,2463.5,0.02]
[1751291379101,9.4532,2463.6,2463.5,0.02]
[1751291379598,10.0032,2463.6,2463.5,0.02]
[1751291380419,11.81529412,2463.6,2463.5,0.02]
[1751291381118,15.87439462,2463.6,2463.5,0.02]
[1751291381549,25.87439462,2463.6,2463.5,0.02]
[1751291381710,5.36242448,2463.1,2463.0,0.02]
[1751291381920,5.36275417,2462.9,2462.8,0.02]
[1751291382137,19.37607841,2462.9,2462.8,0.02]
[1751291382337,27.87007841,2462.9,2462.8,0.02]
[1751291383119,27.87007841,2462.9,2462.0,0.01]
[1751291383120,0.7525,2462.2,2461.7,4.06223341]
[1751291383445,8.497,2462.1,2461.6,4.06228719]
[1751291383817,0.2024,2461.8,2461.7,4.06223341]
[1751291384008,6.9324,2461.8,2461.7,4.06223341]
[1751291384937,6.9324,2461.8,2461.5,4.07250085]
[1751291385159,6.9324,2461.8,2461.7,4.06223341]
[1751291385361,6.9324,2461.8,2461.6,4.06230377]
[1751291385647,6.9324,2461.8,2461.5,4.06245611]
[1751291386144,6.9324,2461.8,2461.5,4.06251791]
[1751291386357,6.9324,2461.8,2461.6,4.06231354]
[1751291386750,6.9324,2461.8,2461.6,3.96231354]
[1751291386952,6.9324,2461.8,2461.5,4.06255199]
[1751291387159,7.42324,2461.8,2461.4,4.06265367]
[1751291387342,0.2024,2461.6,2461.4,4.06262032]
[1751291387539,0.2024,2461.6,2461.3,4.87889933]
[1751291387743,1.9684,2461.6,2461.2,4.06302674]
[1751291387956,2.982814,2461.6,2461.2,3.96302674]
[1751291388125,2.982814,2461.6,2461.1,0.8161]
[1751291388334,2.982814,2461.6,2461.3,4.06273677]
[1751291388530,2.982814,2461.6,2461.3,4.06286797]
[1751291388962,2.982814,2461.6,2461.4,4.06271628]
[1751291389168,2.982814,2461.6,2461.3,4.06279735]
[1751291389746,2.982814,2461.6,2461.4,4.06272849]
[1751291389934,1.9684,2461.6,2461.4,4.06272849]
[1751291390135,1.9684,2461.6,2461.3,4.06280242]
[1751291390336,1.9684,2461.6,2461.1,0.8161]
[1751291390566,0.2024,2461.1,2460.9,0.01]
[1751291390755,8.492,2461.0,2460.9,0.01]
[1751291391568,0.55,2461.3,2460.9,0.01]
[1751291391867,8.492,2461.2,2460.9,0.01]
[1751291392087,12.55508412,2461.2,2460.9,0.01]
[1751291392379,0.55,2461.1,2460.9,0.01]
[1751291395286,0.55,2461.2,2460.9,0.01]
[1751291395487,8.497,2461.0,2460.9,0.01]
[1751291396052,8.497,2461.0,2460.9,4.07355398]
[1751291396265,1.13158,2461.3,2461.1,4.06311077]
[1751291396472,8.494,2461.2,2461.0,4.06325922]
[1751291396802,0.2024,2461.1,2461.0,4.06325922]
[1751291397620,0.55,2461.0,2460.9,0.01]
[1751291397910,1.96358279,2461.0,2460.9,0.01]
[1751291398115,6.02697165,2461.0,2460.9,0.01]
[1751291398409,1.96358279,2461.0,2460.9,0.01]
[1751291399222,6.02697165,2461.0,2460.9,0.01]
[1751291399379,6.78887165,2461.0,2460.9,0.01]
[1751291400263,16.78887165,2461.0,2460.9,0.01]
[1751291400466,2.72548279,2461.0,2460.9,0.01]
[1751291400665,13.88928886,2461.0,2460.9,0.01]
[1751291400903,23.88928886,2461.0,2460.9,0.01]
[1751291401086,58.15728886,2461.0,2460.9,0.01]
[1751291401292,15.37611459,2460.5,2460.4,0.0013803]
[1751291401493,15.37694065,2460.0,2459.9,0.02]
[1751291401698,19.8469,2460.0,2459.9,0.02]
[1751291401879,0.55,2460.0,2459.9,0.02]
[1751291402081,13.17604065,2460.0,2459.9,0.02]
[1751291402326,23.93794065,2460.0,2459.9,0.02]
[1751291402489,0.55,2459.5,2458.9,0.2152905]
[1751291402688,0.55,2459.2,2458.9,0.2152905]
[1751291402994,6.792,2459.1,2459.0,4.06669377]
[1751291403307,6.792,2459.1,2458.9,4.28214108]
[1751291403308,6.792,2459.1,2458.9,4.28208978]
[1751291403509,6.792,2459.1,2458.9,0.2152905]
[1751291404098,6.792,2459.1,2459.0,4.06669377]
[1751291404305,0.7758,2459.6,2459.2,4.06636304]
[1751291404306,1.776,2459.3,2459.2,4.06636304]
[1751291404676,0.8195,2459.9,2459.2,0.7864]
[1751291404875,0.8195,2459.9,2459.8,4.06537116]
[1751291404876,1.776,2459.9,2459.8,4.06537116]
[1751291405202,8.579,2459.9,2459.8,4.06536962]
[1751291405712,8.579,2459.9,2459.2,0.7864]
[1751291406012,8.579,2459.9,2459.6,4.06562065]
[1751291406383,8.579,2459.8,2459.2,0.7864]
[1751291406608,9.3698,2459.8,2459.5,4.06584971]
[1751291406783,9.3698,2459.8,2459.2,4.85274195]
[1751291406985,9.3698,2459.8,2459.3,4.06612015]
[1751291407185,4.61561505,2459.7,2459.0,4.06660129]
[1751291407375,0.55,2459.5,2458.9,0.9709905]
[1751291407576,6.803,2459.4,2458.9,4.28203541]
[1751291407777,2.5668,2459.3,2458.9,4.28214646]
[1751291408012,2.5668,2459.3,2458.9,4.2821408]
[1751291408191,2.5668,2459.3,2459.0,4.06658734]
[1751291408514,2.5668,2459.3,2458.9,4.28201048]
[1751291408696,2.5668,2459.3,2459.0,4.06666272]
[1751291408907,2.5668,2459.3,2458.9,0.2152905]
[1751291409106,3.55878,2459.3,2458.9,0.2152905]
[1751291409323,0.55,2459.2,2458.9,0.2152905]
[1751291410110,0.55,2459.2,2458.9,4.28207535]
[1751291410296,0.55,2459.2,2458.9,0.2152905]
[1751291411286,1.78278,2459.3,2459.1,4.06645704]
[1751291411491,0.2032,2459.1,2458.9,0.2152905]
[1751291411705,1.777,2459.5,2459.4,4.06603236]
[1751291411929,1.9802,2459.5,2459.4,4.06603236]
[1751291412235,1.777,2459.8,2459.5,0.7983]
[1751291412554,1.9802,2459.8,2459.7,4.06553644]
[1751291414096,2.85832,2459.8,2459.3,4.06619769]
[1751291414406,2.65512,2459.8,2459.4,4.06596022]
[1751291414711,0.2032,2459.4,2459.0,0.2032]
[1751291414920,0.2032,2459.4,2459.3,4.06619769]
[1751291415836,1.9802,2459.8,2459.7,4.06553644]
[1751291418537,0.2032,2459.8,2459.7,4.06553644]
[1751291419786,1.777,2460.1,2459.8,0.8276]
[1751291419955,1.9802,2460.1,2460.0,4.06504065]
[1751291420287,0.2032,2460.1,2460.0,4.06504065]
[1751291420448,0.8214,2461.1,2460.1,0.7705]
[1751291420782,1.777,2461.2,2460.2,0.7705]
[1751291420946,11.777,2461.2,2460.2,0.9737]
[1751291421150,0.2032,2460.6,2460.2,0.9737]
[1751291421445,1.777,2460.7,2460.2,4.83515578]
[1751291421650,12.65796845,2460.7,2460.1,4.06471174]
[1751291421851,0.2032,2460.3,2460.2,4.06471018]
[1751291422070,1.9802,2460.3,2460.1,4.06476497]
[1751291422272,0.55,2460.2,2459.9,0.02]
[1751291422583,0.2032,2460.0,2459.9,0.02]
[1751291422948,0.2032,2460.0,2459.9,4.0852059]
[1751291423786,1.777,2460.2,2460.1,4.06487541]
[1751291423985,1.9802,2460.2,2460.1,4.06487541]
[1751291424185,0.01,2460.5,2460.4,4.06437977]
[1751291425262,0.2132,2460.5,2460.4,4.06437977]
[1751291426202,0.01,2460.5,2460.4,4.06437977]
[1751291427396,0.01,2460.5,2460.4,14.26757977]
[1751291428314,0.01,2460.5,2460.4,28.17943771]
[1751291429916,0.01,2460.5,2460.4,16.88379002]
[1751291431191,0.01,2460.5,2460.4,15.05057977]
[1751291431413,0.01,2460.5,2460.4,14.84737977]
[1751291432002,0.01,2460.5,2460.4,4.84737977]
[1751291432502,0.01,2460.5,2460.4,14.84737977]
[1751291433325,0.01,2460.5,2460.4,15.05057977]
[1751291433695,0.01,2460.5,2460.4,21.86957977]
[1751291434115,0.01,2460.5,2460.4,30.25624364]
[1751291435319,0.01,2460.5,2460.4,30.80624364]
[1751291435724,0.01,2461.2,2461.1,14.86442376]
[1751291436245,0.01,2461.2,2461.1,15.06682376]
[1751291436395,0.01,2461.2,2461.1,16.97984138]
[1751291436597,0.01,2461.2,2461.1,15.06682376]
[1751291437796,0.01,2461.2,2461.1,14.06322376]
[1751291438626,0.01,2461.2,2461.1,14.26562376]
[1751291439024,0.01,2461.2,2460.8,0.8155]
[1751291439227,0.01,2461.2,2461.1,4.06322376]
[1751291439839,0.01,2461.2,2460.9,4.06348008]
[1751291440039,0.01,2461.2,2461.0,4.06336349]
[1751291440337,0.01,2461.2,2460.9,4.06347748]
[1751291440511,0.01,2461.2,2460.7,4.06375665]
[1751291440837,0.49361848,2461.2,2460.8,4.06355602]
[1751291441138,1.829,2461.1,2460.5,0.8031]
[1751291441510,1.829,2461.1,2460.8,4.06363324]
[1751291441740,5.89224759,2461.1,2460.7,14.06380189]
[1751291442035,1.829,2461.1,2460.8,4.06364423]
[1751291442241,1.829,2461.1,2461.0,4.06338886]
[1751291443137,1.829,2461.1,2460.9,4.06353851]
[1751291443505,1.829,2461.1,2460.7,10.0]
[1751291443708,1.829,2461.1,2461.0,4.06338886]
[1751291444108,1.829,2461.1,2460.8,4.06369656]
[1751291444312,1.829,2461.1,2460.7,10.0]
[1751291444538,1.829,2461.1,2460.7,14.06378823]
[1751291444945,2.46756885,2461.1,2460.8,4.06371661]
[1751291445136,2.46756885,2461.1,2460.9,4.06350849]
[1751291445444,2.46756885,2461.1,2460.8,4.06362696]
[1751291446048,2.47756885,2461.1,2460.8,4.06362696]
[1751291446348,2.47756885,2461.1,2460.7,14.06381836]
[1751291446572,2.47756885,2461.1,2461.0,4.06338886]
[1751291446871,1.839,2461.1,2461.0,4.06338886]
[1751291448352,1.839,2461.1,2460.9,4.06347358]
[1751291448570,1.839,2461.1,2461.0,4.06338886]
[1751291448865,1.839,2461.1,2460.9,4.06348388]
[1751291449637,0.7788,2461.0,2460.2,0.7631]
[1751291449827,4.0641192,2460.6,2460.3,0.2032]
[1751291450135,4.0641192,2460.6,2460.1,14.06480789]
[1751291450136,0.7788,2460.5,2460.1,14.06480789]
[1751291450337,0.982,2460.5,2460.1,14.06480789]
[1751291450728,0.982,2460.5,2460.2,4.06463424]
[1751291451429,0.982,2460.5,2460.2,10.0]
[1751291451648,0.982,2460.5,2460.2,4.06469924]
[1751291451850,0.982,2460.5,2460.3,4.0644566]
[1751291452159,0.2032,2460.5,2460.4,4.06437977]
[1751291452464,0.2024,2460.7,2460.3,0.974]
[1751291452644,0.2024,2460.7,2460.4,4.06430246]
[1751291452964,0.2024,2460.7,2460.5,4.06414611]
[1751291453332,0.2024,2460.7,2460.4,4.06429398]
[1751291453760,0.2024,2460.7,2460.5,4.06419801]
[1751291454059,0.2024,2460.7,2460.6,14.06404941]
[1751291454230,1.829,2460.9,2460.8,4.06371911]
[1751291454231,2.0314,2460.9,2460.8,4.06371911]
[1751291454632,0.2024,2460.9,2460.8,4.06371911]
[1751291454975,1.83,2460.9,2460.8,4.06371911]
[1751291455766,1.83,2460.9,2460.6,0.2024]
[1751291455966,2.64298638,2460.9,2460.6,4.06391119]
[1751291456173,2.64298638,2460.9,2460.7,4.0638109]
[1751291456331,2.0324,2460.9,2460.8,4.06371911]
[1751291457692,2.0324,2460.9,2460.7,4.06379285]
[1751291457887,2.0324,2460.9,2460.6,4.06402017]
[1751291458440,6.09599455,2460.9,2460.4,0.2032]
[1751291458643,0.2032,2460.5,2460.3,4.06447772]
[1751291458865,0.2032,2460.5,2460.3,4.06445043]
[1751291459278,0.2032,2460.5,2460.2,4.06470179]
[1751291459479,0.2032,2460.5,2460.4,4.06437977]
[1751291459651,1.38039946,2460.8,2460.5,4.06409342]
[1751291459847,0.2032,2460.7,2460.2,0.2032]
[1751291460150,0.2032,2460.7,2460.6,4.06399978]
[1751291460349,2.5828,2460.8,2460.6,4.06399978]
[1751291460544,2.7852,2460.8,2460.5,4.06416]
[1751291460787,6.64651961,2460.8,2460.2,4.0646316]
[1751291460946,4.06411553,2460.6,2460.0,4.06494261]
[1751291461151,0.2032,2460.3,2460.2,4.06455869]
[1751291461977,0.2032,2460.3,2460.2,4.06471018]
[1751291462904,0.27852,2460.7,2460.4,4.06426865]
[1751291463207,0.2032,2460.5,2460.4,4.06426865]
[1751291463504,0.27852,2460.7,2460.6,4.06404941]
[1751291463505,1.812,2460.7,2460.6,4.06404941]
[1751291464018,0.2024,2460.9,2460.8,4.06371911]
[1751291464180,0.2124,2461.1,2460.8,4.06356837]
[1751291464372,0.2124,2461.1,2460.6,1.0225]
[1751291464373,0.2124,2461.1,2460.7,4.06376053]
[1751291464578,0.8322,2461.0,2460.7,4.06378519]
[1751291464804,0.8322,2461.0,2460.9,4.06355398]
[1751291465081,0.8322,2461.0,2460.7,4.06387563]
[1751291465281,4.89565839,2461.0,2460.6,0.2024]
[1751291465477,1.93152614,2461.0,2460.7,4.06378667]
[1751291465705,1.93152614,2461.0,2460.3,10.7984]
[1751291465882,0.2024,2460.8,2460.6,4.0639491]
[1751291466211,0.2024,2460.8,2460.7,4.06388426]
[1751291466416,0.2024,2460.8,2460.4,0.2032]
[1751291466615,0.2024,2460.8,2460.5,4.06407706]
[1751291466797,0.2024,2460.8,2460.6,4.06402758]
[1751291467126,4.07331974,2461.1,2461.0,4.06338886]
[1751291467127,0.01,2461.1,2461.0,4.06338886]
[1751291469313,0.01,2461.1,2461.0,5.8571194]
[1751291470121,0.01,2461.1,2461.0,5.02418886]
[1751291470804,0.01,2461.1,2461.0,4.26578886]
[1751291471932,0.01,2461.1,2461.0,4.06338886]
[1751291472908,0.01,2461.1,2460.9,4.06343998]
[1751291473113,0.01,2461.1,2461.0,4.06338886]
[1751291474135,0.01,2461.1,2460.9,4.06346099]
[1751291474338,0.01,2461.1,2461.0,4.06338886]
[1751291474707,0.7899,2461.0,2460.4,0.8308]
[1751291475035,0.9923,2461.0,2460.8,4.06363416]
[1751291475338,0.7899,2461.0,2460.6,4.06396256]
[1751291475631,0.2032,2460.7,2460.5,4.06412231]
[1751291475832,2.0142,2460.7,2460.5,4.06412231]
[1751291476036,0.751,2460.6,2460.3,4.06447271]
[1751291476236,0.751,2460.6,2460.2,4.06463198]
[1751291476427,0.2032,2460.5,2460.2,4.06463198]
[1751291476825,0.2032,2460.5,2460.3,4.06453094]
[1751291477140,0.2032,2460.5,2460.3,4.06446723]
[1751291477437,0.2032,2460.5,2460.2,4.06462495]
[1751291477814,0.2032,2460.5,2460.4,4.06437977]
[1751291479105,0.7515,2460.8,2460.3,4.06453448]
[1751291479306,0.7515,2460.8,2460.6,4.06404941]
[1751291479307,0.2032,2460.7,2460.6,4.06404941]
[1751291479540,0.2024,2460.7,2460.3,4.06452468]
[1751291479752,0.2024,2460.7,2460.3,4.0644513]
[1751291479905,0.8172,2460.3,2459.9,4.08513064]
[1751291480276,2.6292,2460.3,2460.1,4.06476093]
[1751291480415,1.812,2460.3,2460.1,4.06480886]
[1751291480616,6.14046678,2460.3,2459.9,0.02]
[1751291480957,0.8172,2460.1,2459.9,0.02]
[1751291481726,4.06504065,2460.0,2459.9,0.02]
[1751291481944,4.88216952,2460.1,2459.9,0.02]
[1751291482142,0.89469449,2460.0,2459.9,0.02]
[1751291483430,0.8172,2460.1,2459.9,0.02]
[1751291484457,4.88217813,2460.1,2459.9,0.02]
[1751291484666,4.06504065,2460.0,2459.9,0.02]
[1751291485228,4.61504065,2460.0,2459.9,0.02]